bitfinex/quotes_ETHUSD_20250715
["timestamp","ask_amount","ask_price","bid_price","bid_amount"]
[1752541685743,20.2968968,2987.0,2986.9,0.002]
[1752541686278,15.1358968,2987.0,2986.9,0.002]
[1752541686415,20.2968968,2987.0,2986.9,0.002]
[1752541688623,20.2968968,2987.0,2986.9,3.34995272]
[1752541688624,10.1672,2987.0,2986.9,3.34995272]
[1752541688947,5.3282,2987.0,2986.9,0.002]
[1752541689250,0.7924,2987.4,2986.9,0.002]
[1752541689251,0.7924,2987.4,2987.0,3.34776724]
[1752541689546,3.34726101,2987.6,2986.9,0.002]
[1752541689547,0.1672,2987.2,2986.9,0.002]
[1752541689746,5.162,2987.1,2987.0,3.34784064]
[1752541690058,0.1672,2987.2,2987.1,3.34772856]
[1752541690261,5.162,2987.2,2987.1,3.34772856]
[1752541690438,0.1672,2987.4,2987.1,3.34772856]
[1752541690763,0.8033,2988.4,2987.5,3.34718662]
[1752541690960,0.8033,2988.4,2987.6,0.36819034]
[1752541691260,0.1672,2988.2,2987.9,3.34676145]
[1752541691462,5.162,2988.1,2987.9,3.34676145]
[1752541692249,5.162,2988.1,2987.7,0.1672]
[1752541692537,5.162,2988.1,2987.3,0.79087504]
[1752541692736,0.1672,2988.0,2987.5,0.1672]
[1752541692939,5.162,2987.9,2987.6,3.34707448]
[1752541693138,5.162,2987.9,2987.6,4.03332309]
[1752541693341,5.162,2987.9,2987.6,0.68615482]
[1752541693544,5.162,2987.9,2987.7,3.3469843]
[1752541694172,5.162,2987.9,2987.6,0.68615482]
[1752541694378,5.162,2987.9,2987.5,3.51446466]
[1752541694557,5.162,2987.9,2987.6,3.34714832]
[1752541694760,0.1672,2987.8,2987.6,3.34714832]
[1752541694959,5.161,2987.7,2987.5,3.34721728]
[1752541695477,5.161,2987.7,2987.3,0.9246]
[1752541695636,5.161,2987.7,2987.4,3.34733085]
[1752541695838,5.161,2987.7,2987.0,1.44347648]
[1752541696139,0.1672,2987.4,2986.9,3.3498901]
[1752541696337,0.1672,2987.2,2986.9,0.002]
[1752541696540,0.1672,2987.2,2986.9,3.3499214]
[1752541696765,0.1672,2987.2,2986.9,0.002]
[1752541697081,0.53282,2987.1,2986.9,0.002]
[1752541697285,8.50884064,2987.0,2986.9,0.002]
[1752541697469,5.161,2987.0,2986.9,0.002]
[1752541697687,18.50884064,2987.0,2986.9,0.002]
[1752541698092,19.29954064,2987.0,2986.9,0.002]
[1752541698291,21.03066578,2987.0,2986.9,1e-08]
[1752541698676,13.34828902,2986.6,2986.5,0.002]
[1752541698895,19.30198902,2986.6,2986.5,0.002]
[1752541699208,19.85198902,2986.6,2986.5,1e-08]
[1752541699563,19.85198902,2986.6,2986.3,0.002]
[1752541699564,4.14631326,2986.4,2986.3,0.002]
[1752541699763,19.84313326,2986.4,2986.3,0.002]
[1752541700401,19.84313326,2986.4,2986.3,1e-08]
[1752541701404,19.84313326,2986.4,2985.1,0.04]
[1752541701405,14.17223752,2986.2,2986.1,1e-08]
[1752541701607,37.59650609,2986.2,2986.1,1e-08]
[1752541701766,39.32763123,2986.2,2986.1,1e-08]
[1752541701963,3.89918614,2985.8,2985.7,1e-08]
[1752541702181,14.1164593,2985.2,2985.1,0.04]
[1752541702521,19.4516593,2985.2,2985.1,1e-08]
[1752541702806,20.5344793,2985.2,2985.1,1e-08]
[1752541703007,20.5344793,2985.2,2983.5,0.7582]
[1752541703008,3.35098183,2984.2,2983.5,0.7582]
[1752541703215,15.169,2984.2,2983.5,0.7582]
[1752541703568,18.51998183,2984.2,2983.5,0.7582]
[1752541703908,18.51998183,2984.2,2983.3,3.35194957]
[1752541704122,18.51998183,2984.2,2983.1,0.8457]
[1752541704267,18.51998183,2984.2,2983.3,3.35192043]
[1752541704611,18.51998183,2984.2,2983.1,0.8457]
[1752541704965,15.169,2984.2,2983.1,0.8457]
[1752541705189,11.73112514,2984.2,2983.2,3.35210434]
[1752541705437,18.52098183,2984.2,2983.1,0.8457]
[1752541705601,18.52098183,2984.2,2983.1,1.0129]
[1752541705997,18.52098183,2984.2,2983.2,3.35208947]
[1752541706312,18.52098183,2984.2,2983.1,0.8457]
[1752541706313,10.0,2984.2,2983.1,0.8457]
[1752541706627,15.172,2984.2,2983.4,3.35185745]
[1752541706817,18.52298183,2984.2,2983.1,1.0129]
[1752541707020,18.52298183,2984.2,2983.2,3.35200865]
[1752541707186,10.0,2984.2,2983.6,3.35161567]
[1752541707562,20.15063183,2984.2,2983.4,3.35187909]
[1752541707852,20.15063183,2984.2,2983.2,3.35205774]
[1752541707989,20.15063183,2984.2,2983.1,0.04]
[1752541707990,20.15063183,2984.2,2983.3,3.35196623]
[1752541708691,19.60063183,2984.2,2983.1,0.04]
[1752541708932,19.60063183,2984.2,2983.6,3.3515904]
[1752541709129,16.24865,2984.2,2983.7,3.35145522]
[1752541709315,15.172,2984.2,2983.5,0.7726]
[1752541709517,15.172,2984.2,2983.7,3.35146335]
[1752541709934,15.172,2984.2,2983.5,0.7726]
[1752541710097,15.173,2984.2,2983.5,0.7726]
[1752541710294,15.173,2984.2,2983.7,3.35150505]
[1752541710640,15.173,2984.2,2983.8,3.35142976]
[1752541710936,15.173,2984.2,2983.5,4.12429097]
[1752541711091,15.173,2984.2,2984.0,3.35113788]
[1752541711299,8.035,2984.5,2983.6,3.35161222]
[1752541711622,8.035,2984.5,2984.4,3.35075727]
[1752541712287,0.8202,2985.5,2984.4,3.35075727]
[1752541712288,0.1672,2984.9,2984.4,0.1672]
[1752541712492,5.175,2984.8,2984.7,3.35042047]
[1752541712736,5.70922,2984.8,2984.1,0.04]
[1752541712945,0.1672,2984.6,2984.2,3.35088811]
[1752541713107,5.174,2984.5,2984.4,3.35075727]
[1752541713298,0.1672,2984.6,2984.4,4.13515727]
[1752541713498,5.177,2984.5,2984.4,0.7844]
[1752541714196,5.177,2984.5,2984.1,0.2072]
[1752541714197,5.177,2984.5,2984.1,3.55827162]
[1752541714733,5.177,2984.5,2984.2,3.35097004]
[1752541714929,5.177,2984.5,2984.3,3.35080485]
[1752541715132,5.177,2984.5,2984.2,3.35091302]
[1752541715293,5.177,2984.5,2984.1,3.55825585]
[1752541715492,5.177,2984.5,2984.1,0.2072]
[1752541716511,5.177,2984.5,2984.2,3.35089498]
[1752541717325,5.177,2984.5,2984.1,0.2072]
[1752541717521,8.52774258,2984.5,2984.1,0.04]
[1752541717841,0.1672,2984.3,2984.1,0.04]
[1752541718021,5.175,2984.2,2984.1,0.04]
[1752541718225,5.175,2984.2,2984.1,3.39109413]
[1752541718445,5.175,2984.2,2984.1,0.04]
[1752541718751,5.175,2984.2,2984.1,3.39109413]
[1752541718952,0.1672,2984.3,2984.2,3.35098183]
[1752541719153,5.174,2984.3,2984.2,3.76852001]
[1752541719658,0.1672,2984.7,2984.6,3.35053273]
[1752541719958,0.1672,2984.7,2984.5,3.35063945]
[1752541719959,5.174,2984.7,2984.3,3.35083864]
[1752541720176,5.174,2984.7,2984.6,3.35053273]
[1752541720718,0.1672,2985.0,2984.9,3.35019598]
[1752541721013,5.3412,2985.0,2984.9,3.35019598]
[1752541721454,5.3412,2985.0,2984.8,3.35027288]
[1752541721760,5.3412,2985.0,2984.9,3.35019598]
[1752541721964,5.3412,2985.0,2984.6,0.7891]
[1752541722257,5.3412,2985.0,2984.8,3.35020047]
[1752541722759,0.001,2985.1,2985.0,3.35008375]
[1752541723121,0.001,2985.1,2985.0,4.03683105]
[1752541723122,5.172,2985.1,2985.0,4.03683105]
[1752541723456,5.172,2985.1,2985.0,4.20403105]
[1752541724162,5.172,2985.1,2985.0,3.51728375]
[1752541724463,5.172,2985.1,2985.0,3.35008375]
[1752541725644,0.001,2985.1,2985.0,3.35008375]
[1752541725962,5.173,2985.1,2985.0,3.51728375]
[1752541728471,5.173,2985.1,2985.0,0.1672]
[1752541729471,5.173,2985.1,2985.0,3.51728375]
[1752541730476,5.172,2985.1,2985.0,3.51728375]
[1752541732340,5.172,2985.1,2985.0,0.1672]
[1752541732546,5.172,2985.1,2984.6,0.7891]
[1752541732776,5.172,2985.1,2984.7,3.35034997]
[1752541733175,5.172,2985.1,2984.7,3.35042047]
[1752541734485,5.172,2985.1,2984.8,3.35028815]
[1752541734688,0.001,2985.1,2985.0,3.35008375]
[1752541734980,5.168,2985.1,2985.0,3.51728375]
[1752541735782,0.001,2985.1,2985.0,3.51728375]
[1752541735982,0.001,2985.1,2985.0,4.34218458]
[1752541736286,5.167,2985.1,2985.0,5.18799176]
[1752541736480,0.001,2985.1,2985.0,5.73799176]
[1752541736649,5.168,2985.1,2985.0,5.73799176]
[1752541736847,5.168,2985.1,2985.0,5.70449093]
[1752541737978,5.168,2985.1,2985.0,5.15449093]
[1752541738590,5.168,2985.1,2985.0,4.30868375]
[1752541739590,5.168,2985.1,2985.0,4.14148375]
[1752541740964,5.168,2985.1,2984.7,0.7921]
[1752541741465,5.168,2985.1,2984.9,3.35015017]
[1752541741690,5.168,2985.1,2984.8,3.35025949]
[1752541741856,5.168,2985.1,2984.6,3.35042502]
[1752541742055,5.168,2985.1,2984.4,0.82560757]
[1752541742368,5.168,2985.1,2984.4,4.97081568]
[1752541742562,5.168,2985.1,2984.4,1.6200945]
[1752541742772,5.168,2985.1,2984.8,3.35022761]
[1752541743178,5.168,2985.1,2984.7,3.35039493]
[1752541743399,5.168,2985.1,2984.4,1.58658693]
[1752541743616,5.168,2985.1,2984.9,3.35017385]
[1752541743909,3.35015646,2985.0,2984.4,0.7921]
[1752541744108,3.35015646,2985.0,2984.5,3.35056012]
[1752541744414,9.29201873,2985.1,2984.6,3.35052808]
[1752541744568,5.942,2985.1,2984.7,3.35039757]
[1752541744764,0.001,2985.1,2984.4,0.7921]
[1752541745009,0.001,2985.1,2984.8,3.35028404]
[1752541745010,5.166,2985.0,2984.8,3.35028404]
[1752541745186,5.166,2985.0,2984.7,3.35035414]
[1752541745364,5.166,2985.0,2984.8,3.35030359]
[1752541745569,5.166,2985.0,2984.9,3.35019598]
[1752541745796,5.166,2985.0,2984.8,3.35025319]
[1752541746108,5.166,2985.0,2984.7,3.35036156]
[1752541746275,5.166,2985.0,2984.8,3.3503008]
[1752541746672,8.51615037,2985.0,2984.5,3.35059281]
[1752541746877,5.166,2985.0,2984.5,3.35059281]
[1752541747079,5.166,2985.0,2984.7,3.35041668]
[1752541747777,5.166,2984.9,2984.8,3.35030822]
[1752541748712,0.001,2985.1,2984.9,3.350144]
[1752541748909,0.001,2985.1,2985.0,3.35008375]
[1752541749078,5.167,2985.1,2985.0,3.35008375]
[1752541749480,5.167,2985.1,2985.0,3.51728375]
[1752541749679,5.167,2985.1,2985.0,4.29428375]
[1752541749986,5.167,2985.1,2985.0,3.51728375]
[1752541751511,5.167,2985.1,2985.0,0.1672]
[1752541751680,5.167,2985.1,2985.0,3.51728375]
[1752541752718,0.001,2985.1,2985.0,3.51728375]
[1752541752879,5.167,2985.1,2985.0,4.20404002]
[1752541754119,5.167,2985.1,2985.0,0.1672]
[1752541754290,5.167,2985.1,2985.0,3.35008375]
[1752541754812,5.167,2985.1,2984.9,3.35018469]
[1752541755379,5.167,2985.1,2984.8,0.1672]
[1752541755684,5.3342,2985.1,2984.7,3.35033871]
[1752541756491,0.1682,2985.1,2984.5,0.1672]
[1752541756697,0.1682,2985.1,2985.0,3.35008375]
[1752541756904,5.3332,2985.1,2985.0,3.35008375]
[1752541757281,5.3332,2985.1,2984.8,3.35025933]
[1752541757686,5.3332,2985.1,2984.7,3.35037277]
[1752541757892,0.53332,2985.0,2984.5,3.51778033]
[1752541758090,0.53332,2985.0,2984.6,3.35047975]
[1752541758589,0.53332,2985.0,2984.5,0.1672]
[1752541758787,0.53332,2985.0,2984.8,3.35024914]
[1752541759043,5.3332,2985.1,2984.8,3.35024914]
[1752541759220,5.3332,2985.1,2984.8,3.30024914]
[1752541759443,0.1682,2985.1,2984.5,0.1672]
[1752541759605,5.165,2985.0,2984.9,3.35010225]
[1752541759800,5.165,2985.0,2984.8,3.35025503]
[1752541760239,5.165,2985.0,2984.9,3.35019598]
[1752541762743,5.6816,2985.0,2984.8,3.35030265]
[1752541763088,5.6816,2985.0,2984.9,3.35019598]
[1752541763317,5.6816,2985.0,2984.8,3.35026185]
[1752541763518,5.165,2985.0,2984.8,3.35026185]
[1752541763729,5.165,2985.0,2984.5,0.002]
[1752541763930,5.165,2985.0,2984.5,0.1692]
[1752541764129,5.165,2985.0,2984.7,3.35035336]
[1752541764334,5.165,2985.0,2984.5,0.1692]
[1752541764534,0.1672,2984.8,2984.5,0.002]
[1752541764700,5.165,2984.7,2984.5,0.002]
[1752541764900,5.165,2984.7,2984.6,3.35053273]
[1752541765332,0.001,2985.1,2985.0,3.35008375]
[1752541765532,5.166,2985.1,2985.0,3.35008375]
[1752541765850,0.001,2985.1,2985.0,3.35008375]
[1752541766139,5.166,2985.1,2985.0,5.00171185]
[1752541766306,5.166,2985.1,2985.0,4.96821102]
[1752541766745,5.166,2985.1,2985.0,5.51821102]
[1752541770340,5.166,2985.1,2985.0,4.29818375]
[1752541772913,5.166,2985.1,2985.0,3.51728375]
[1752541774210,8.039,2985.6,2985.5,3.34952269]
[1752541774438,0.7959,2986.4,2985.7,3.34925971]
[1752541774772,0.7959,2986.6,2986.2,3.34873752]
[1752541774921,5.166,2986.3,2986.2,3.34873752]
[1752541777857,5.166,2986.3,2985.7,0.55]
[1752541778064,5.166,2986.3,2985.5,3.34947565]
[1752541778065,4.15967011,2986.2,2985.5,3.34947565]
[1752541778231,0.1672,2985.9,2985.3,0.1672]
[1752541778422,0.1672,2985.9,2985.1,0.7855]
[1752541778423,5.164,2985.8,2985.6,0.1672]
[1752541778754,0.9781,2986.1,2985.8,3.34917504]
[1752541779078,0.9781,2986.1,2985.6,3.51660374]
[1752541779079,5.164,2986.0,2985.6,3.51660374]
[1752541779262,0.9781,2986.1,2985.6,0.51886037]
[1752541779561,5.164,2986.0,2985.9,3.51621898]
[1752541780742,0.001,2986.3,2986.2,3.34873752]
[1752541780943,5.165,2986.3,2986.2,3.34873752]
[1752541781164,5.165,2986.3,2986.2,3.51593752]
[1752541783784,0.001,2986.3,2986.2,4.29403752]
[1752541783946,0.001,2986.3,2986.2,6.60953976]
[1752541784142,1e-08,2986.3,2986.2,6.60953976]
[1752541785291,1e-08,2986.3,2986.2,6.57605239]
[1752541785484,1e-08,2986.3,2986.2,4.84403752]
[1752541785870,1e-08,2986.3,2986.2,3.51593752]
[1752541786058,5.16300001,2986.3,2986.2,3.51593752]
[1752541786460,5.16300001,2986.3,2986.2,0.1672]
[1752541786647,5.97600001,2986.3,2985.9,0.1672]
[1752541786988,4.1617613,2986.2,2985.5,3.34951493]
[1752541787184,0.1672,2986.0,2985.5,0.1672]
[1752541787350,5.163,2985.9,2985.5,0.1672]
[1752541787549,5.163,2985.9,2985.5,3.51664836]
[1752541787749,8.51208747,2985.9,2985.5,0.1672]
[1752541788156,0.813,2985.8,2985.5,0.1672]
[1752541788465,0.1672,2985.5,2985.0,0.1672]
[1752541788667,5.163,2985.4,2985.3,3.34974709]
[1752541788871,5.163,2985.4,2985.2,3.34981035]
[1752541789190,5.163,2985.4,2985.0,3.51720907]
[1752541789393,5.163,2985.4,2984.8,3.5269814]
[1752541789394,0.813,2985.3,2984.8,0.17669578]
[1752541789597,0.9802,2985.3,2984.8,3.35222346]
[1752541789755,0.9802,2985.3,2985.0,3.35007554]
[1752541790090,0.9802,2985.3,2984.8,0.68898639]
[1752541790410,0.813,2985.3,2985.0,0.1672]
[1752541790856,0.813,2985.3,2985.1,3.34994998]
[1752541791899,0.813,2985.3,2985.0,0.1672]
[1752541792070,0.813,2985.3,2984.8,0.002]
[1752541792272,0.9802,2985.3,2984.8,0.002]
[1752541792471,5.163,2985.2,2984.8,0.002]
[1752541792675,5.163,2985.2,2984.9,3.35014434]
[1752541793061,5.163,2985.2,2984.8,0.002]
[1752541793258,5.163,2985.2,2985.0,3.35002015]
[1752541793990,5.163,2985.2,2985.1,3.34997152]
[1752541794193,5.163,2985.2,2985.0,0.1672]
[1752541794603,5.163,2985.2,2985.0,3.51724295]
[1752541795094,5.163,2985.2,2985.1,3.34997152]
[1752541795924,5.163,2985.2,2985.0,0.1672]
[1752541797296,8.51288991,2985.2,2985.0,0.1672]
[1752541797799,5.163,2985.2,2985.0,0.1672]
[1752541797960,8.51286282,2985.2,2985.0,0.1672]
[1752541798305,5.163,2985.2,2985.0,0.1672]
[1752541798658,8.51291996,2985.2,2984.8,0.002]
[1752541798904,8.68011996,2985.2,2984.8,0.002]
[1752541800006,5.3302,2985.2,2984.8,0.002]
[1752541800207,3.35006932,2985.1,2984.8,0.002]
[1752541800406,3.35010331,2985.0,2984.8,0.002]
[1752541800610,8.68007353,2985.2,2984.8,0.002]
[1752541800611,19.30739598,2984.9,2984.8,0.002]
[1752541801693,15.9572,2984.9,2984.8,0.002]
[1752541801903,17.71426857,2985.7,2984.8,0.002]
[1752541801904,3.34959755,2985.5,2984.8,0.002]
[1752541802210,10.0,2985.3,2984.8,3.35222599]
[1752541802507,3.34989253,2985.2,2984.8,0.002]
[1752541802710,10.0,2985.3,2984.8,3.35230495]
[1752541802942,3.35013818,2985.0,2984.8,0.002]
[1752541803235,9.30629598,2984.9,2984.8,0.002]
[1752541803836,5.9561,2984.9,2984.8,0.002]
[1752541804126,9.30629598,2984.9,2984.8,0.002]
[1752541804319,19.73456136,2984.9,2984.8,0.002]
[1752541804620,11.22036538,2984.9,2984.8,0.002]
[1752541804829,5.9561,2984.9,2984.8,0.002]
[1752541805942,5.164,2984.9,2984.8,0.002]
[1752541806113,0.7808,2985.2,2984.8,0.002]
[1752541806438,3.59963178,2986.5,2984.8,0.002]
[1752541806439,0.7808,2985.6,2985.0,0.7637]
[1752541806610,5.163,2985.5,2985.4,3.34961218]
[1752541806940,0.7808,2985.9,2985.4,3.34961218]
[1752541807138,0.7808,2985.9,2985.6,3.3494105]
[1752541807312,0.7808,2986.1,2985.6,3.3494105]
[1752541807639,5.163,2985.7,2985.6,3.3494105]
[1752541808749,5.163,2985.7,2985.0,0.7637]
[1752541809040,0.7808,2985.6,2985.1,3.34988743]
[1752541809200,0.7808,2985.6,2985.2,3.34985716]
[1752541809401,0.7808,2985.6,2985.3,3.34973787]
[1752541810032,0.7808,2985.6,2985.3,3.34973825]
[1752541810601,5.163,2985.7,2984.8,0.552]
[1752541810823,5.3302,2985.7,2985.4,3.34958575]
[1752541811024,5.163,2985.7,2985.6,3.3494105]
[1752541812738,5.163,2985.7,2985.5,0.1672]
[1752541813738,5.163,2985.7,2985.5,3.51670254]
[1752541813907,5.163,2985.7,2985.5,3.51666981]
[1752541814108,5.163,2985.7,2985.5,0.1672]
[1752541814920,5.163,2985.7,2985.5,3.51671973]
[1752541815318,5.163,2985.7,2985.6,3.3494105]
[1752541816000,5.163,2985.7,2985.5,0.1672]
[1752541816441,5.163,2985.7,2985.6,3.3494105]
[1752541817421,5.163,2985.7,2985.6,3.5166105]
[1752541818055,5.163,2985.7,2985.6,4.28313307]
[1752541818464,0.1672,2986.2,2985.6,4.28309105]
[1752541818752,5.163,2986.1,2986.0,3.34895559]
[1752541821232,5.163,2986.1,2986.0,4.0354778]
[1752541821433,5.16200001,2986.3,2986.1,3.3487927]
[1752541821746,5.16200001,2986.3,2986.2,3.34873752]
[1752541822757,5.16200001,2986.3,2986.2,3.51593752]
[1752541823945,1e-08,2986.3,2986.2,3.51593752]
[1752541824133,1e-08,2986.3,2986.2,4.31490349]
[1752541824335,1e-08,2986.3,2986.2,5.64030349]
[1752541825067,1e-08,2986.3,2986.2,5.60681612]
[1752541827472,1e-08,2986.3,2986.2,4.83141612]
[1752541827681,1e-08,2986.3,2986.2,4.28141612]
[1752541827973,5.93050001,2986.3,2986.2,0.1672]
[1752541828338,1e-08,2986.3,2986.2,3.51593752]
[1752541828537,1e-08,2986.3,2986.2,4.20241559]
[1752541830655,1e-08,2986.3,2986.2,4.78590296]
[1752541831245,1e-08,2986.3,2986.2,4.75241559]
[1752541832047,1e-08,2986.3,2986.2,4.78590296]
[1752541833144,1e-08,2986.3,2986.2,9.94690296]
[1752541833365,1e-08,2986.3,2986.2,9.91341559]
[1752541833876,1e-08,2986.3,2986.2,4.75241559]
[1752541834081,1e-08,2986.3,2986.2,9.91341559]
[1752541835289,1e-08,2986.3,2986.2,10.72391559]
[1752541836294,1e-08,2986.3,2986.2,5.56291559]
[1752541836769,1e-08,2986.3,2986.2,10.72291559]
[1752541842408,1e-08,2986.3,2986.2,0.85367807]
[1752541842608,1e-08,2986.3,2986.2,0.1672]
[1752541842763,4.16752539,2986.3,2986.2,0.1672]
[1752541842963,4.16799455,2985.9,2985.8,0.1672]
[1752541843186,0.8189,2985.9,2985.8,0.1672]
[1752541843794,4.16797398,2985.9,2985.8,0.1672]
[1752541844001,3.34921408,2985.8,2984.8,0.002]
[1752541844165,0.8189,2985.9,2985.5,0.1672]
[1752541844367,4.1683105,2985.6,2985.5,0.1672]
[1752541844666,9.3283105,2985.6,2985.5,0.1672]
[1752541844867,5.9789,2985.6,2985.5,0.1672]
[1752541845412,9.3283105,2985.6,2985.5,0.1672]
[1752541846000,5.9789,2985.6,2985.5,0.1672]
[1752541846926,5.16,2985.6,2985.5,3.51672269]
[1752541847135,5.16,2985.6,2985.5,0.1672]
[1752541847977,8.5094105,2985.6,2985.5,0.1672]
[1752541848181,10.19448155,2985.6,2985.5,0.1672]
[1752541848411,3.34954454,2985.5,2985.2,0.1672]
[1752541848920,9.26775177,2985.6,2985.2,0.1672]
[1752541849427,5.9183,2985.6,2985.2,3.51697406]
[1752541849921,0.7583,2985.8,2985.5,3.34952269]
[1752541850110,5.16,2985.7,2985.5,3.51672269]
[1752541850312,5.16,2985.7,2985.5,3.34952269]
[1752541850513,5.16,2985.7,2985.6,0.1672]
[1752541850985,5.16,2985.7,2985.6,3.5166105]
[1752541851517,5.16,2985.7,2985.6,0.1672]
[1752541853823,5.16,2985.7,2985.5,0.1692]
[1752541855181,8.50931398,2985.7,2985.5,0.1692]
[1752541855636,3.3494105,2985.6,2985.5,0.1692]
[1752541855810,4.1693105,2985.6,2985.5,0.002]
[1752541857699,14.1693105,2985.6,2985.5,0.002]
[1752541859329,14.9693105,2985.6,2985.5,0.002]
[1752541859525,15.97158658,2985.6,2985.5,0.002]
[1752541859714,15.17158658,2985.6,2985.5,0.002]
[1752541860940,20.33258658,2985.6,2985.5,0.002]
[1752541861764,20.49978658,2985.6,2985.5,0.002]
[1752541866952,15.33878658,2985.6,2985.5,0.002]
[1752541867145,19.4975105,2985.6,2985.5,0.002]
[1752541871865,10.9871,2985.6,2985.5,0.002]
[1752541872162,19.4975105,2985.6,2985.5,0.002]
[1752541876771,19.4965105,2985.6,2985.5,0.002]
[1752541879143,15.3272,2985.6,2985.5,0.002]
[1752541879542,18.6766105,2985.6,2985.5,0.002]
[1752541879742,15.3272,2985.6,2985.5,0.002]
[1752541880572,18.6766105,2985.6,2985.5,0.002]
[1752541882377,19.4519105,2985.6,2985.5,0.002]
[1752541883352,15.0919105,2985.6,2985.5,0.002]
[1752541883656,19.4519105,2985.6,2985.5,0.002]
[1752541885790,21.4619105,2985.6,2985.5,0.002]
[1752541885991,19.4519105,2985.6,2985.5,0.002]
[1752541887784,27.4899105,2985.6,2985.5,0.002]
[1752541891579,22.3299105,2985.6,2985.5,0.002]
[1752541891778,27.4889105,2985.6,2985.5,0.002]
[1752541893661,28.2889105,2985.6,2985.5,0.002]
[1752541895961,30.2989105,2985.6,2985.5,0.002]
[1752541896164,28.2889105,2985.6,2985.5,0.002]
[1752541896757,27.4889105,2985.6,2985.5,0.002]
[1752541896959,8.2052,2985.6,2985.5,0.002]
[1752541897381,8.2052,2985.6,2985.5,3.35152269]
[1752541897382,13.197,2985.6,2985.5,3.35152269]
[1752541898364,13.197,2985.6,2985.5,0.002]
[1752541899276,16.7136105,2985.6,2985.5,0.002]
[1752541900073,26.7136105,2985.6,2985.5,0.002]
[1752541900464,28.2806105,2985.6,2985.5,0.002]
[1752541902069,27.4806105,2985.6,2985.5,1e-08]
[1752541902399,30.0406105,2985.6,2985.5,1e-08]
[1752541902698,4.13749598,2984.9,2984.8,1e-08]
[1752541902855,19.70924558,2984.9,2984.8,1e-08]
[1752541903395,14.13805727,2984.4,2984.3,1e-08]
[1752541903597,14.13828183,2984.2,2984.1,1e-08]
[1752541903888,27.33428183,2984.2,2984.1,1e-08]
[1752541904062,37.0115504,2984.2,2984.1,1e-08]
[1752541904265,38.86174594,2984.2,2984.1,1e-08]
[1752541905455,29.18447737,2984.2,2984.1,1e-08]
[1752541905965,24.02647737,2984.2,2984.1,1e-08]
[1752541906163,27.33428183,2984.2,2984.1,1e-08]
[1752541908116,23.9843,2984.2,2984.1,1e-08]
[1752541908305,22.17628183,2984.2,2984.1,1e-08]
[1752541908504,18.038,2984.2,2984.1,1e-08]
[1752541908856,23.197,2984.2,2984.1,1e-08]
[1752541909524,26.54798183,2984.2,2984.1,1e-08]
[1752541911172,23.197,2984.2,2984.1,1e-08]
[1752541911413,26.54798183,2984.2,2984.1,1e-08]
[1752541911970,27.31018183,2984.2,2984.1,1e-08]
[1752541916071,26.54798183,2984.2,2984.1,1e-08]
[1752541918621,27.36628183,2984.2,2984.1,1e-08]
[1752541923345,21.38898183,2984.2,2984.1,1e-08]
[1752541923660,26.54798183,2984.2,2984.1,1e-08]
[1752541926862,18.038,2984.2,2984.1,1e-08]
[1752541927164,13.197,2984.2,2984.1,0.82270001]
[1752541927461,13.197,2984.2,2984.1,4.59137872]
[1752541928158,8.038,2984.2,2984.1,4.59137872]
[1752541928529,13.197,2984.2,2984.1,4.75857872]
[1752541930561,5.159,2984.2,2984.1,4.75857872]
[1752541932369,0.1672,2984.7,2984.6,3.35053273]
[1752541932553,0.1672,2985.0,2984.7,0.7627]
[1752541932770,5.158,2984.9,2984.8,3.35020721]
[1752541932943,5.158,2984.9,2984.7,0.7627]
[1752541933962,5.158,2984.9,2984.7,4.11311849]
[1752541934283,0.1672,2985.0,2984.8,3.35030822]
[1752541934485,5.158,2984.9,2984.7,0.7627]
[1752541936667,8.2092,2985.3,2985.0,3.35008353]
[1752541936869,5.157,2985.2,2985.1,0.7757]
[1752541937571,5.157,2985.2,2984.9,0.7757]
[1752541937786,5.157,2985.2,2985.0,3.35000592]
[1752541937973,8.042,2985.3,2985.0,3.77929651]
[1752541938286,5.157,2985.2,2985.0,3.94652208]
[1752541938587,5.157,2985.2,2985.1,3.34997152]
[1752541939110,8.042,2985.3,2985.2,4.1089593]
[1752541939252,13.198,2985.3,2985.2,0.7591]
[1752541940754,8.042,2985.3,2985.2,0.7591]
[1752541941005,5.956,2985.3,2985.2,4.7037855]
[1752541941170,5.156,2985.3,2985.2,4.7037855]
[1752541942289,5.156,2985.3,2985.0,0.8104]
[1752541942454,5.156,2985.3,2985.1,0.1672]
[1752541942654,5.156,2985.3,2985.0,0.8104]
[1752541942873,3.34907681,2985.9,2985.3,3.34964527]
[1752541943185,0.1672,2985.7,2985.4,3.34957771]
[1752541943568,0.1672,2985.7,2985.3,3.34970256]
[1752541943763,0.1672,2985.7,2985.2,0.9776]
[1752541943965,0.001,2986.1,2985.3,0.58349747]
[1752541944155,0.001,2986.1,2986.0,4.15936182]
[1752541944358,5.156,2986.1,2986.0,4.32656182]
[1752541945055,5.156,2986.1,2986.0,0.9776]
[1752541945469,5.156,2986.1,2986.0,0.8104]
[1752541946062,5.156,2986.1,2985.9,0.1672]
[1752541946694,3.34896182,2986.0,2985.9,0.1672]
[1752541946879,6.00648286,2986.1,2985.7,0.1672]
[1752541947056,5.156,2986.1,2985.7,0.1672]
[1752541947259,5.156,2986.1,2985.7,3.51643366]
[1752541947484,5.156,2986.1,2985.7,0.1672]
[1752541947688,5.156,2986.1,2985.7,3.51647861]
[1752541948003,0.001,2986.1,2986.0,4.11256182]
[1752541948177,5.155,2986.1,2986.0,4.11256182]
[1752541948370,5.155,2986.1,2986.0,0.7636]